Workbook

Sheet WA Electric - Sched 91
D4: RESIDENTIAL | E4: GENERAL SVC. | F4: LG. GEN. SVC. | G4: EX LG GEN SVC | H4: PUMPING | I4: ST & AREA LTG
A5: Source | C5: TOTAL | D5: SCHEDULE 1,2 | E5: SCH. 11,12 | F5: SCH. 21,22 | G5: SCHEDULE 25 | H5: SCH. 30, 31, 32 | I5: SCH. 41-48
A7: Forecast | B7: Total Annual Forecasted kWh's | C7: =SUM(D7:I7) -> 5774288887 | D7: =SUM('Billing Determinants'!$I19:$T19) -> 2480476705 | E7: =SUM('Billing Determinants'!I20:T20) -> 629495779.1 | F7: =SUM('Billing Determinants'!I21:T21) -> 1409914151 | G7: =SUM('Billing Determinants'!I22:T22) -> 1108185236 | H7: =SUM('Billing Determinants'!I23:T23) -> 128788950.2 | I7: =SUM('Billing Determinants'!I24:T24) -> 17428065.11 | L7: August 2018 - July 2019
B9: Present DSM Rates | D9: 0.00344 | E9: 0.00463 | F9: 0.00366 | G9: 0.00232 | H9: 0.00341 | I9: 0.01215
B11: Present Annual DSM Revenue | C11: =SUM(D11:I11) -> 19829602.18 | D11: =D7*D9 -> 8532839.867 | E11: =E7*E9 -> 2914565.457 | F11: 5160285.793 | G11: 2570989.749 | H11: 439170.3203 | I11: =I7*I9 -> 211750.9911
A13: UE-170485 | B13: Base Revenue | C13: =SUM(D13:I13) -> 502897000 | D13: =ROUND('Base Revenue'!F14*1000,-3) -> 214393000 | E13: =ROUND('Base Revenue'!F16*1000,-3) -> 75057000 | F13: =ROUND('Base Revenue'!F18*1000,-3) -> 129541000 | G13: =ROUND('Base Revenue'!F20*1000,-3) -> 65753000 | H13: =ROUND('Base Revenue'!F22*1000,-3) -> 11132000 | I13: =ROUND('Base Revenue'!F24*1000,-3) -> 7021000
B15: Percentage of Current Base Volumetric Revenue | C15: =SUM(D15:I15) -> 1 | D15: =D13/$C$13 -> 0.4263159255 | E15: =E13/$C$13 -> 0.1492492498 | F15: =F13/$C$13 -> 0.2575895263 | G15: =G13/$C$13 -> 0.1307484435 | H15: 0.02213574549 | I15: =I13/$C$13 -> 0.01396110933
B17: Revenue Requirement | C17: 25176479.18
B19: Revenue Spread Based on Current Allocation | C19: =SUM(D19:I19) -> 25176479.18 | D19: =$C$17*D15 -> 10733134.02 | E19: =$C$17*E15 -> 3757570.632 | F19: =$C$17*F15 -> 6485197.346 | G19: =$C$17*G15 -> 3291785.466 | H19: 557300.1355 | I19: =$C$17*I15 -> 351491.5785
B21: DSM Revenue Increase <Decrease> | C21: =C19-C11 -> 5346877.006 | D21: =D19-D11 -> 2200294.158 | E21: =E19-E11 -> 843005.1747 | F21: =F19-F11 -> 1324911.554 | G21: =G19-G11 -> 720795.7177 | H21: =H19-H11 -> 118129.8152 | I21: 139740.5873
B23: Proposed DSM Rates | D23: =D19/D7 -> 0.004327044878 | E23: =E19/E7 -> 0.005969175262 | F23: =F19/F7 -> 0.004599710799 | G23: 0.002970428912 | H23: 0.00432723564 | I23: =I19/I7 -> 0.02016813549
B25: Percentage Increase <Decrease> | C25: =C19/C11-1 -> 0.2696411637 | D25: =D19/D11-1 -> 0.2578618833 | E25: =E19/E11-1 -> 0.2892387174 | F25: =F19/F11-1 -> 0.2567515845 | G25: =G19/G11-1 -> 0.2803572897 | H25: 0.2689840587 | I25: 0.6599288466
B27: Present Billed Revenue | C27: =SUM(D27:I27) -> 534292000 | D27: 232082000 | E27: 78742000 | F27: 135958000 | G27: 68455000 | H27: 11682000 | I27: 7373000
B29: Proposed Billed Revenue | C29: =SUM(D29:I29) -> 539638877 | D29: =D21+D27 -> 234282294.2 | E29: =E21+E27 -> 79585005.17 | F29: 137282911.6 | G29: =G21+G27 -> 69175795.72 | H29: =H21+H27 -> 11800129.82 | I29: =I21+I27 -> 7512740.587
B31: Overall Billed Percentage Increase <Decrease> | C31: =C29/C27-1 -> 0.01000740607 | D31: =D29/D27-1 -> 0.009480675613 | E31: =E29/E27-1 -> 0.0107059152 | F31: =F29/F27-1 -> 0.009745006205 | G31: =G29/G27-1 -> 0.0105294824 | H31: 0.01011212252 | I31: 0.01895301605
B34: Present DSM Revenue as a Percentage of Billed Revenue | C34: =C11/C27 -> 0.03711379204
B36: Percentage DSM Decrease | C36: =C21/C11 -> 0.2696411637
C38: Present | D38: Proposed | E38: Change
B39: Gross DSM Revenue | C39: =C11 -> 19829602.18 | D39: =C19 -> 25176479.18 | E39: =D39-C39 -> 5346877.006
B40: Revenue Conversion Factor | C40: ='Rev Conv Factor'!E22 -> 0.953323 | D40: ='Rev Conv Factor'!E22 -> 0.953323
B42: Net DSM Revenue | C42: =C39*C40 -> 18904015.84 | D42: =D39*D40 -> 24001316.66 | E42: =D42-C42 -> 5097300.828
C44: Present | D44: Proposed
B45: Average Monthly Bill @ 938 kWh's - Increase <Decrease> | C45: =9+(800*0.08289)+(138*0.09521) -> 88.45098 | D45: =9+(800*(0.08289+(D23-D9))+(138*(0.09521+(ROUND(D23,5)-D9)))) -> 89.2834359 | E45: =D45-C45 -> 0.8324559027 | F45: =E45/C45 -> 0.009411494397

Sheet Revenue By Month
A4: Forecasted Usage | D4: 2018-01-18 | E4: 2018-02-18 | F4: 2018-03-18 | G4: 2018-04-18 | H4: 2018-05-18 | I4: 2018-06-18 | J4: 2018-07-18 | K4: 2018-08-18 | L4: 2018-09-18 | M4: 2018-10-18 | N4: 2018-11-18 | O4: 2018-12-18 | P4: 2019-01-18 | Q4: 2019-02-18 | R4: 2019-03-18 | S4: 2019-04-18 | T4: 2019-05-18 | U4: 2019-06-18 | V4: 2019-07-18 | W4: 2019-08-18 | X4: 2019-09-18 | Y4: 2019-10-18 | Z4: 2019-11-18 | AA4: 2019-12-18 | AB4: 2020-01-18 | AC4: 2020-02-18 | AD4: 2020-03-18 | AE4: 2020-04-18 | AF4: 2020-05-18 | AG4: 2020-06-18 | AH4: 2020-07-18
B5: Residential Schedule 001 | D5: ='Billing Determinants'!B19 -> 0 | E5: ='Billing Determinants'!C19 -> 0 | F5: ='Billing Determinants'!D19 -> 219310472.3 | G5: ='Billing Determinants'!E19 -> 183580366 | H5: ='Billing Determinants'!F19 -> 167768708.6 | I5: ='Billing Determinants'!G19 -> 159521698.5 | J5: ='Billing Determinants'!H19 -> 193305007.9 | K5: ='Billing Determinants'!I19 -> 184858018.7 | L5: ='Billing Determinants'!J19 -> 157638755.9 | M5: ='Billing Determinants'!K19 -> 178027618.5 | N5: ='Billing Determinants'!L19 -> 224687935.8 | O5: ='Billing Determinants'!M19 -> 287544777 | P5: ='Billing Determinants'!N19 -> 279942481.1 | Q5: ='Billing Determinants'!O19 -> 231672872.2 | R5: ='Billing Determinants'!P19 -> 229723951.3 | S5: ='Billing Determinants'!Q19 -> 185171741.3 | T5: ='Billing Determinants'!R19 -> 171212541.6 | U5: ='Billing Determinants'!S19 -> 160461831 | V5: ='Billing Determinants'!T19 -> 189534181.1 | W5: ='Billing Determinants'!U19 -> 187528324.4 | X5: ='Billing Determinants'!V19 -> 157828462.9 | Y5: ='Billing Determinants'!W19 -> 178626443.8 | Z5: ='Billing Determinants'!X19 -> 225784329.3 | AA5: ='Billing Determinants'!Y19 -> 288996352.5 | AB5: ='Billing Determinants'!Z19 -> 281691737.5 | AC5: ='Billing Determinants'!AA19 -> 231732549.6 | AD5: ='Billing Determinants'!AB19 -> 229836898 | AE5: ='Billing Determinants'!AC19 -> 187736553.2 | AF5: ='Billing Determinants'!AD19 -> 171313161.3 | AG5: ='Billing Determinants'!AE19 -> 162935154 | AH5: ='Billing Determinants'!AF19 -> 193877849
B6: General Svc Schedule 011/012 | D6: ='Billing Determinants'!B20 -> 0 | E6: ='Billing Determinants'!C20 -> 0 | F6: ='Billing Determinants'!D20 -> 52692521.02 | G6: ='Billing Determinants'!E20 -> 46888913.14 | H6: ='Billing Determinants'!F20 -> 46559333.99 | I6: ='Billing Determinants'!G20 -> 46932059.28 | J6: ='Billing Determinants'!H20 -> 55700578.49 | K6: ='Billing Determinants'!I20 -> 52408626.76 | L6: ='Billing Determinants'!J20 -> 46125169.94 | M6: ='Billing Determinants'!K20 -> 50502330.5 | N6: ='Billing Determinants'!L20 -> 54600476.22 | O6: ='Billing Determinants'!M20 -> 62093440.32 | P6: ='Billing Determinants'!N20 -> 60182835.49 | Q6: ='Billing Determinants'!O20 -> 52657856.82 | R6: ='Billing Determinants'!P20 -> 54554045.11 | S6: ='Billing Determinants'!Q20 -> 47099932.02 | T6: ='Billing Determinants'!R20 -> 47376343.59 | U6: ='Billing Determinants'!S20 -> 47176671.15 | V6: ='Billing Determinants'!T20 -> 54718051.14 | W6: ='Billing Determinants'!U20 -> 53080944.88 | X6: ='Billing Determinants'!V20 -> 46096659.14 | Y6: ='Billing Determinants'!W20 -> 50771605.41 | Z6: ='Billing Determinants'!X20 -> 55049282.54 | AA6: ='Billing Determinants'!Y20 -> 62415467.35 | AB6: ='Billing Determinants'!Z20 -> 60331051.66 | AC6: ='Billing Determinants'!AA20 -> 52374429.79 | AD6: ='Billing Determinants'!AB20 -> 54279713.73 | AE6: ='Billing Determinants'!AC20 -> 47496831.59 | AF6: ='Billing Determinants'!AD20 -> 47122609.58 | AG6: ='Billing Determinants'!AE20 -> 47924079.48 | AH6: ='Billing Determinants'!AF20 -> 56165964.74
B7: Large Gen Svc Schedule 021/022 | D7: ='Billing Determinants'!B21 -> 0 | E7: ='Billing Determinants'!C21 -> 0 | F7: ='Billing Determinants'!D21 -> 112516450.9 | G7: ='Billing Determinants'!E21 -> 106282214.9 | H7: ='Billing Determinants'!F21 -> 111294017.2 | I7: ='Billing Determinants'!G21 -> 114630212.7 | J7: ='Billing Determinants'!H21 -> 132582990.3 | K7: ='Billing Determinants'!I21 -> 123363787.3 | L7: ='Billing Determinants'!J21 -> 110726905.5 | M7: ='Billing Determinants'!K21 -> 121196354 | N7: ='Billing Determinants'!L21 -> 120906426.8 | O7: ='Billing Determinants'!M21 -> 126402638.8 | P7: ='Billing Determinants'!N21 -> 120336777.7 | Q7: ='Billing Determinants'!O21 -> 107297406.5 | R7: ='Billing Determinants'!P21 -> 115916480.2 | S7: ='Billing Determinants'!Q21 -> 106231087.9 | T7: ='Billing Determinants'!R21 -> 112870560.2 | U7: ='Billing Determinants'!S21 -> 114860194.4 | V7: ='Billing Determinants'!T21 -> 129805531.7 | W7: ='Billing Determinants'!U21 -> 124329910.2 | X7: ='Billing Determinants'!V21 -> 110089869.6 | Y7: ='Billing Determinants'!W21 -> 121447723.8 | Z7: ='Billing Determinants'!X21 -> 121635905 | AA7: ='Billing Determinants'!Y21 -> 126384251.3 | AB7: ='Billing Determinants'!Z21 -> 119863379.7 | AC7: ='Billing Determinants'!AA21 -> 105967738.8 | AD7: ='Billing Determinants'!AB21 -> 114308944.5 | AE7: ='Billing Determinants'!AC21 -> 106141527 | AF7: ='Billing Determinants'!AD21 -> 111440057.1 | AG7: ='Billing Determinants'!AE21 -> 116202281.6 | AH7: ='Billing Determinants'!AF21 -> 132690754.4
B8: Extra Large Gen Schedule 25 | D8: ='Billing Determinants'!B22 -> 0 | E8: ='Billing Determinants'!C22 -> 0 | F8: ='Billing Determinants'!D22 -> 89975531.04 | G8: ='Billing Determinants'!E22 -> 91951519.83 | H8: ='Billing Determinants'!F22 -> 92774510.06 | I8: ='Billing Determinants'!G22 -> 92304315.92 | J8: ='Billing Determinants'!H22 -> 92381168.8 | K8: ='Billing Determinants'!I22 -> 95801534.5 | L8: ='Billing Determinants'!J22 -> 96058766.26 | M8: ='Billing Determinants'!K22 -> 94925036.04 | N8: ='Billing Determinants'!L22 -> 94112428.56 | O8: ='Billing Determinants'!M22 -> 93110082.73 | P8: ='Billing Determinants'!N22 -> 90304374.42 | Q8: ='Billing Determinants'!O22 -> 91187123.79 | R8: ='Billing Determinants'!P22 -> 88239196.32 | S8: ='Billing Determinants'!Q22 -> 90434725.26 | T8: ='Billing Determinants'!R22 -> 91871177.29 | U8: ='Billing Determinants'!S22 -> 91175548.22 | V8: ='Billing Determinants'!T22 -> 90965243.09 | W8: ='Billing Determinants'!U22 -> 94300477.21 | X8: ='Billing Determinants'!V22 -> 93877662.59 | Y8: ='Billing Determinants'!W22 -> 92948636.59 | Z8: ='Billing Determinants'!X22 -> 92002998.65 | AA8: ='Billing Determinants'!Y22 -> 91779097.88 | AB8: ='Billing Determinants'!Z22 -> 89892018.66 | AC8: ='Billing Determinants'!AA22 -> 90468492.93 | AD8: ='Billing Determinants'!AB22 -> 87474790.05 | AE8: ='Billing Determinants'!AC22 -> 89608271.63 | AF8: ='Billing Determinants'!AD22 -> 91322347.46 | AG8: ='Billing Determinants'!AE22 -> 90173078.7 | AH8: ='Billing Determinants'!AF22 -> 90590252.57
B9: Pumping Schedule 31/32 | D9: ='Billing Determinants'!B23 -> 0 | E9: ='Billing Determinants'!C23 -> 0 | F9: ='Billing Determinants'!D23 -> 4126870.339 | G9: ='Billing Determinants'!E23 -> 6198627.935 | H9: ='Billing Determinants'!F23 -> 11401003.21 | I9: ='Billing Determinants'!G23 -> 16654768.2 | J9: ='Billing Determinants'!H23 -> 23194216.94 | K9: ='Billing Determinants'!I23 -> 23410150.39 | L9: ='Billing Determinants'!J23 -> 17517686.19 | M9: ='Billing Determinants'!K23 -> 10625887.4 | N9: ='Billing Determinants'!L23 -> 4640598.279 | O9: ='Billing Determinants'!M23 -> 3922551.118 | P9: ='Billing Determinants'!N23 -> 3849860.421 | Q9: ='Billing Determinants'!O23 -> 3481455.508 | R9: ='Billing Determinants'!P23 -> 4135231.573 | S9: ='Billing Determinants'!Q23 -> 6107075.19 | T9: ='Billing Determinants'!R23 -> 11547177.02 | U9: ='Billing Determinants'!S23 -> 16741287.03 | V9: ='Billing Determinants'!T23 -> 22809990.11 | W9: ='Billing Determinants'!U23 -> 23824473.02 | X9: ='Billing Determinants'!V23 -> 17777504.95 | Y9: ='Billing Determinants'!W23 -> 10941818.47 | Z9: ='Billing Determinants'!X23 -> 4719617.588 | AA9: ='Billing Determinants'!Y23 -> 3931042.426 | AB9: ='Billing Determinants'!Z23 -> 3835841.888 | AC9: ='Billing Determinants'!AA23 -> 3449413.085 | AD9: ='Billing Determinants'!AB23 -> 4031231.075 | AE9: ='Billing Determinants'!AC23 -> 5835392.519 | AF9: ='Billing Determinants'!AD23 -> 11034909.51 | AG9: ='Billing Determinants'!AE23 -> 16828338.67 | AH9: ='Billing Determinants'!AF23 -> 23269468.72
B10: Street and Area Lights | D10: ='Billing Determinants'!B24 -> 0 | E10: ='Billing Determinants'!C24 -> 0 | F10: ='Billing Determinants'!D24 -> 1506535.19 | G10: ='Billing Determinants'!E24 -> 1503052.451 | H10: ='Billing Determinants'!F24 -> 1495752.099 | I10: ='Billing Determinants'!G24 -> 1491875.997 | J10: ='Billing Determinants'!H24 -> 1487548.733 | K10: ='Billing Determinants'!I24 -> 1479929.062 | L10: ='Billing Determinants'!J24 -> 1467615.212 | M10: ='Billing Determinants'!K24 -> 1467813.884 | N10: ='Billing Determinants'!L24 -> 1471889.944 | O10: ='Billing Determinants'!M24 -> 1471764.424 | P10: ='Billing Determinants'!N24 -> 1453065.127 | Q10: ='Billing Determinants'!O24 -> 1445805.966 | R10: ='Billing Determinants'!P24 -> 1444644.491 | S10: ='Billing Determinants'!Q24 -> 1435571.433 | T10: ='Billing Determinants'!R24 -> 1432958.848 | U10: ='Billing Determinants'!S24 -> 1431250.827 | V10: ='Billing Determinants'!T24 -> 1425755.896 | W10: ='Billing Determinants'!U24 -> 1414507.326 | X10: ='Billing Determinants'!V24 -> 1407182.431 | Y10: ='Billing Determinants'!W24 -> 1409068.45 | Z10: ='Billing Determinants'!X24 -> 1405695.08 | AA10: ='Billing Determinants'!Y24 -> 1397747.175 | AB10: ='Billing Determinants'!Z24 -> 1384703.338 | AC10: ='Billing Determinants'!AA24 -> 1376122.372 | AD10: ='Billing Determinants'!AB24 -> 1364386.423 | AE10: ='Billing Determinants'!AC24 -> 1351535.184 | AF10: ='Billing Determinants'!AD24 -> 1345565.514 | AG10: ='Billing Determinants'!AE24 -> 1334718.336 | AH10: ='Billing Determinants'!AF24 -> 1317951.229
A11: Total Forecasted Usage | D11: =SUM(D5:D10) -> 0 | E11: =SUM(E5:E10) -> 0 | F11: =SUM(F5:F10) -> 480128380.8 | G11: =SUM(G5:G10) -> 436404694.3 | H11: =SUM(H5:H10) -> 431293325.2 | I11: 431534930.7 | J11: 498651511.1 | K11: 481322046.7 | L11: 429534899 | M11: 456745040.3 | N11: 500419755.6 | O11: 574545254.3 | P11: 556069394.3 | Q11: 487742520.8 | R11: 494013549 | S11: =SUM(S5:S10) -> 436480133.1 | T11: 436310758.6 | U11: 431846782.6 | V11: 489258752.9 | W11: =SUM(W5:W10) -> 484478637.1 | X11: 427077341.6 | Y11: 456145296.5 | Z11: 500597828.2 | AA11: 574903958.6 | AB11: 556998732.7 | AC11: 485368746.6 | AD11: 491295963.9 | AE11: 438170111.1 | AF11: 433578650.5 | AG11: 435397650.8 | AH11: 497912240.6
D12: =D11-'Billing Determinants'!B25 -> 0 | E12: =E11-'Billing Determinants'!C25 -> 0 | F12: =F11-'Billing Determinants'!D25 -> 0 | G12: =G11-'Billing Determinants'!E25 -> 0 | H12: =H11-'Billing Determinants'!F25 -> 0 | I12: =I11-'Billing Determinants'!G25 -> 0 | J12: =J11-'Billing Determinants'!H25 -> 0 | K12: =K11-'Billing Determinants'!I25 -> 0 | L12: =L11-'Billing Determinants'!J25 -> 0 | M12: =M11-'Billing Determinants'!K25 -> 0 | N12: =N11-'Billing Determinants'!L25 -> 0 | O12: =O11-'Billing Determinants'!M25 -> 0 | P12: =P11-'Billing Determinants'!N25 -> 0 | Q12: =Q11-'Billing Determinants'!O25 -> 0 | R12: =R11-'Billing Determinants'!P25 -> 0 | S12: =S11-'Billing Determinants'!Q25 -> 0 | T12: =T11-'Billing Determinants'!R25 -> 0 | U12: =U11-'Billing Determinants'!S25 -> 0 | V12: =V11-'Billing Determinants'!T25 -> 0 | W12: =W11-'Billing Determinants'!U25 -> 0 | X12: =X11-'Billing Determinants'!V25 -> 0 | Y12: =Y11-'Billing Determinants'!W25 -> 0 | Z12: =Z11-'Billing Determinants'!X25 -> 0 | AA12: =AA11-'Billing Determinants'!Y25 -> 0 | AB12: =AB11-'Billing Determinants'!Z25 -> 0 | AC12: =AC11-'Billing Determinants'!AA25 -> 0 | AD12: =AD11-'Billing Determinants'!AB25 -> 0 | AE12: =AE11-'Billing Determinants'!AC25 -> 0 | AF12: =AF11-'Billing Determinants'!AD25 -> 0 | AG12: =AG11-'Billing Determinants'!AE25 -> 0 | AH12: =AH11-'Billing Determinants'!AF25 -> 0
A14: DSM Rates
B15: Residential Schedule 001 | D15: 0.00344 | E15: 0.00344 | F15: 0.00344 | G15: 0.00344 | H15: 0.00344 | I15: 0.00344 | J15: 0.00344 | K15: ='WA Electric - Sched 91'!$D$23 -> 0.004327044878 | L15: ='WA Electric - Sched 91'!$D$23 -> 0.004327044878 | M15: ='WA Electric - Sched 91'!$D$23 -> 0.004327044878 | N15: ='WA Electric - Sched 91'!$D$23 -> 0.004327044878 | O15: ='WA Electric - Sched 91'!$D$23 -> 0.004327044878 | P15: ='WA Electric - Sched 91'!$D$23 -> 0.004327044878 | Q15: ='WA Electric - Sched 91'!$D$23 -> 0.004327044878 | R15: ='WA Electric - Sched 91'!$D$23 -> 0.004327044878 | S15: ='WA Electric - Sched 91'!$D$23 -> 0.004327044878 | T15: ='WA Electric - Sched 91'!$D$23 -> 0.004327044878 | U15: ='WA Electric - Sched 91'!$D$23 -> 0.004327044878 | V15: ='WA Electric - Sched 91'!$D$23 -> 0.004327044878 | W15: ='WA Electric - Sched 91'!$D$23 -> 0.004327044878 | X15: ='WA Electric - Sched 91'!$D$23 -> 0.004327044878 | Y15: ='WA Electric - Sched 91'!$D$23 -> 0.004327044878 | Z15: ='WA Electric - Sched 91'!$D$23 -> 0.004327044878 | AA15: ='WA Electric - Sched 91'!$D$23 -> 0.004327044878 | AB15: ='WA Electric - Sched 91'!$D$23 -> 0.004327044878 | AC15: ='WA Electric - Sched 91'!$D$23 -> 0.004327044878 | AD15: ='WA Electric - Sched 91'!$D$23 -> 0.004327044878 | AE15: ='WA Electric - Sched 91'!$D$23 -> 0.004327044878 | AF15: ='WA Electric - Sched 91'!$D$23 -> 0.004327044878 | AG15: ='WA Electric - Sched 91'!$D$23 -> 0.004327044878 | AH15: ='WA Electric - Sched 91'!$D$23 -> 0.004327044878
B16: General Svc Schedule 011/012 | D16: 0.00463 | E16: 0.00463 | F16: 0.00463 | G16: 0.00463 | H16: 0.00463 | I16: 0.00463 | J16: 0.00463 | K16: ='WA Electric - Sched 91'!$E$23 -> 0.005969175262 | L16: ='WA Electric - Sched 91'!$E$23 -> 0.005969175262 | M16: ='WA Electric - Sched 91'!$E$23 -> 0.005969175262 | N16: ='WA Electric - Sched 91'!$E$23 -> 0.005969175262 | O16: ='WA Electric - Sched 91'!$E$23 -> 0.005969175262 | P16: ='WA Electric - Sched 91'!$E$23 -> 0.005969175262 | Q16: ='WA Electric - Sched 91'!$E$23 -> 0.005969175262 | R16: ='WA Electric - Sched 91'!$E$23 -> 0.005969175262 | S16: ='WA Electric - Sched 91'!$E$23 -> 0.005969175262 | T16: ='WA Electric - Sched 91'!$E$23 -> 0.005969175262 | U16: ='WA Electric - Sched 91'!$E$23 -> 0.005969175262 | V16: ='WA Electric - Sched 91'!$E$23 -> 0.005969175262 | W16: ='WA Electric - Sched 91'!$E$23 -> 0.005969175262 | X16: ='WA Electric - Sched 91'!$E$23 -> 0.005969175262 | Y16: ='WA Electric - Sched 91'!$E$23 -> 0.005969175262 | Z16: ='WA Electric - Sched 91'!$E$23 -> 0.005969175262 | AA16: ='WA Electric - Sched 91'!$E$23 -> 0.005969175262 | AB16: ='WA Electric - Sched 91'!$E$23 -> 0.005969175262 | AC16: ='WA Electric - Sched 91'!$E$23 -> 0.005969175262 | AD16: ='WA Electric - Sched 91'!$E$23 -> 0.005969175262 | AE16: ='WA Electric - Sched 91'!$E$23 -> 0.005969175262 | AF16: ='WA Electric - Sched 91'!$E$23 -> 0.005969175262 | AG16: ='WA Electric - Sched 91'!$E$23 -> 0.005969175262 | AH16: ='WA Electric - Sched 91'!$E$23 -> 0.005969175262
B17: Large Gen Svc Schedule 021/022 | D17: 0.00366 | E17: 0.00366 | F17: 0.00366 | G17: 0.00366 | H17: 0.00366 | I17: 0.00366 | J17: 0.00366 | K17: ='WA Electric - Sched 91'!$F$23 -> 0.004599710799 | L17: ='WA Electric - Sched 91'!$F$23 -> 0.004599710799 | M17: ='WA Electric - Sched 91'!$F$23 -> 0.004599710799 | N17: ='WA Electric - Sched 91'!$F$23 -> 0.004599710799 | O17: ='WA Electric - Sched 91'!$F$23 -> 0.004599710799 | P17: ='WA Electric - Sched 91'!$F$23 -> 0.004599710799 | Q17: ='WA Electric - Sched 91'!$F$23 -> 0.004599710799 | R17: ='WA Electric - Sched 91'!$F$23 -> 0.004599710799 | S17: ='WA Electric - Sched 91'!$F$23 -> 0.004599710799 | T17: ='WA Electric - Sched 91'!$F$23 -> 0.004599710799 | U17: ='WA Electric - Sched 91'!$F$23 -> 0.004599710799 | V17: ='WA Electric - Sched 91'!$F$23 -> 0.004599710799 | W17: ='WA Electric - Sched 91'!$F$23 -> 0.004599710799 | X17: ='WA Electric - Sched 91'!$F$23 -> 0.004599710799 | Y17: ='WA Electric - Sched 91'!$F$23 -> 0.004599710799 | Z17: ='WA Electric - Sched 91'!$F$23 -> 0.004599710799 | AA17: ='WA Electric - Sched 91'!$F$23 -> 0.004599710799 | AB17: ='WA Electric - Sched 91'!$F$23 -> 0.004599710799 | AC17: ='WA Electric - Sched 91'!$F$23 -> 0.004599710799 | AD17: ='WA Electric - Sched 91'!$F$23 -> 0.004599710799 | AE17: ='WA Electric - Sched 91'!$F$23 -> 0.004599710799 | AF17: ='WA Electric - Sched 91'!$F$23 -> 0.004599710799 | AG17: ='WA Electric - Sched 91'!$F$23 -> 0.004599710799 | AH17: ='WA Electric - Sched 91'!$F$23 -> 0.004599710799
B18: Extra Large Gen Schedule 25 | D18: 0.00232 | E18: 0.00232 | F18: 0.00232 | G18: 0.00232 | H18: 0.00232 | I18: 0.00232 | J18: 0.00232 | K18: ='WA Electric - Sched 91'!$G$23 -> 0.002970428912 | L18: ='WA Electric - Sched 91'!$G$23 -> 0.002970428912 | M18: ='WA Electric - Sched 91'!$G$23 -> 0.002970428912 | N18: ='WA Electric - Sched 91'!$G$23 -> 0.002970428912 | O18: ='WA Electric - Sched 91'!$G$23 -> 0.002970428912 | P18: ='WA Electric - Sched 91'!$G$23 -> 0.002970428912 | Q18: ='WA Electric - Sched 91'!$G$23 -> 0.002970428912 | R18: ='WA Electric - Sched 91'!$G$23 -> 0.002970428912 | S18: ='WA Electric - Sched 91'!$G$23 -> 0.002970428912 | T18: ='WA Electric - Sched 91'!$G$23 -> 0.002970428912 | U18: ='WA Electric - Sched 91'!$G$23 -> 0.002970428912 | V18: ='WA Electric - Sched 91'!$G$23 -> 0.002970428912 | W18: ='WA Electric - Sched 91'!$G$23 -> 0.002970428912 | X18: ='WA Electric - Sched 91'!$G$23 -> 0.002970428912 | Y18: ='WA Electric - Sched 91'!$G$23 -> 0.002970428912 | Z18: ='WA Electric - Sched 91'!$G$23 -> 0.002970428912 | AA18: ='WA Electric - Sched 91'!$G$23 -> 0.002970428912 | AB18: ='WA Electric - Sched 91'!$G$23 -> 0.002970428912 | AC18: ='WA Electric - Sched 91'!$G$23 -> 0.002970428912 | AD18: ='WA Electric - Sched 91'!$G$23 -> 0.002970428912 | AE18: ='WA Electric - Sched 91'!$G$23 -> 0.002970428912 | AF18: ='WA Electric - Sched 91'!$G$23 -> 0.002970428912 | AG18: ='WA Electric - Sched 91'!$G$23 -> 0.002970428912 | AH18: ='WA Electric - Sched 91'!$G$23 -> 0.002970428912
B19: Pumping Schedule 31/32 | D19: 0.00341 | E19: 0.00341 | F19: 0.00341 | G19: 0.00341 | H19: 0.00341 | I19: 0.00341 | J19: 0.00341 | K19: ='WA Electric - Sched 91'!$H$23 -> 0.00432723564 | L19: ='WA Electric - Sched 91'!$H$23 -> 0.00432723564 | M19: ='WA Electric - Sched 91'!$H$23 -> 0.00432723564 | N19: ='WA Electric - Sched 91'!$H$23 -> 0.00432723564 | O19: ='WA Electric - Sched 91'!$H$23 -> 0.00432723564 | P19: ='WA Electric - Sched 91'!$H$23 -> 0.00432723564 | Q19: ='WA Electric - Sched 91'!$H$23 -> 0.00432723564 | R19: ='WA Electric - Sched 91'!$H$23 -> 0.00432723564 | S19: ='WA Electric - Sched 91'!$H$23 -> 0.00432723564 | T19: ='WA Electric - Sched 91'!$H$23 -> 0.00432723564 | U19: ='WA Electric - Sched 91'!$H$23 -> 0.00432723564 | V19: ='WA Electric - Sched 91'!$H$23 -> 0.00432723564 | W19: ='WA Electric - Sched 91'!$H$23 -> 0.00432723564 | X19: ='WA Electric - Sched 91'!$H$23 -> 0.00432723564 | Y19: ='WA Electric - Sched 91'!$H$23 -> 0.00432723564 | Z19: ='WA Electric - Sched 91'!$H$23 -> 0.00432723564 | AA19: ='WA Electric - Sched 91'!$H$23 -> 0.00432723564 | AB19: ='WA Electric - Sched 91'!$H$23 -> 0.00432723564 | AC19: ='WA Electric - Sched 91'!$H$23 -> 0.00432723564 | AD19: ='WA Electric - Sched 91'!$H$23 -> 0.00432723564 | AE19: ='WA Electric - Sched 91'!$H$23 -> 0.00432723564 | AF19: ='WA Electric - Sched 91'!$H$23 -> 0.00432723564 | AG19: ='WA Electric - Sched 91'!$H$23 -> 0.00432723564 | AH19: ='WA Electric - Sched 91'!$H$23 -> 0.00432723564
B20: Street and Area Lights | D20: 0.01215 | E20: 0.01215 | F20: 0.01215 | G20: 0.01215 | H20: 0.01215 | I20: 0.01215 | J20: 0.01215 | K20: ='WA Electric - Sched 91'!$I$23 -> 0.02016813549 | L20: ='WA Electric - Sched 91'!$I$23 -> 0.02016813549 | M20: ='WA Electric - Sched 91'!$I$23 -> 0.02016813549 | N20: ='WA Electric - Sched 91'!$I$23 -> 0.02016813549 | O20: ='WA Electric - Sched 91'!$I$23 -> 0.02016813549 | P20: ='WA Electric - Sched 91'!$I$23 -> 0.02016813549 | Q20: ='WA Electric - Sched 91'!$I$23 -> 0.02016813549 | R20: ='WA Electric - Sched 91'!$I$23 -> 0.02016813549 | S20: ='WA Electric - Sched 91'!$I$23 -> 0.02016813549 | T20: ='WA Electric - Sched 91'!$I$23 -> 0.02016813549 | U20: ='WA Electric - Sched 91'!$I$23 -> 0.02016813549 | V20: ='WA Electric - Sched 91'!$I$23 -> 0.02016813549 | W20: ='WA Electric - Sched 91'!$I$23 -> 0.02016813549 | X20: ='WA Electric - Sched 91'!$I$23 -> 0.02016813549 | Y20: ='WA Electric - Sched 91'!$I$23 -> 0.02016813549 | Z20: ='WA Electric - Sched 91'!$I$23 -> 0.02016813549 | AA20: ='WA Electric - Sched 91'!$I$23 -> 0.02016813549 | AB20: ='WA Electric - Sched 91'!$I$23 -> 0.02016813549 | AC20: ='WA Electric - Sched 91'!$I$23 -> 0.02016813549 | AD20: ='WA Electric - Sched 91'!$I$23 -> 0.02016813549 | AE20: ='WA Electric - Sched 91'!$I$23 -> 0.02016813549 | AF20: ='WA Electric - Sched 91'!$I$23 -> 0.02016813549 | AG20: ='WA Electric - Sched 91'!$I$23 -> 0.02016813549 | AH20: ='WA Electric - Sched 91'!$I$23 -> 0.02016813549
A23: Gross DSM Revenue | D23: =D4 -> 2018-01-18 | E23: =E4 -> 2018-02-18 | F23: 2018-03-18 | G23: 2018-04-18 | H23: 2018-05-18 | I23: 2018-06-18 | J23: 2018-07-18 | K23: 2018-08-18 | L23: 2018-09-18 | M23: 2018-10-18 | N23: 2018-11-18 | O23: 2018-12-18 | P23: 2019-01-18 | Q23: 2019-02-18 | R23: 2019-03-18 | S23: 2019-04-18 | T23: 2019-05-18 | U23: 2019-06-18 | V23: 2019-07-18 | W23: =W4 -> 2019-08-18 | X23: 2019-09-18 | Y23: 2019-10-18 | Z23: 2019-11-18 | AA23: 2019-12-18 | AB23: 2020-01-18 | AC23: 2020-02-18 | AD23: 2020-03-18 | AE23: 2020-04-18 | AF23: 2020-05-18 | AG23: 2020-06-18 | AH23: 2020-07-18
B24: Residential Schedule 001 | D24: =D5*D15 -> 0 | E24: =E5*E15 -> 0 | F24: =F5*F15 -> 754428.0247 | G24: =G5*G15 -> 631516.4591 | H24: =H5*H15 -> 577124.3576 | I24: =I5*I15 -> 548754.6429 | J24: 664969.2271 | K24: 799888.9429 | L24: 682109.9714 | M24: 770333.495 | N24: 972234.7817 | O24: 1244219.154 | P24: 1211323.679 | Q24: 1002458.915 | R24: 994025.847 | S24: =S5*S15 -> 801246.435 | T24: 740844.3514 | U24: 694325.5439 | V24: =V5*V15 -> 820122.9074 | W24: =W5*W15 -> 811443.4756 | X24: 682930.8421 | Y24: 772924.6386 | Z24: 976978.9257 | AA24: 1250500.187 | AB24: 1218892.79 | AC24: 1002717.142 | AD24: 994514.5725 | AE24: 812344.491 | AF24: 741279.7372 | AG24: 705027.7238 | AH24: 838918.1534
B25: General Svc Schedule 011/012 | D25: =D6*D16 -> 0 | E25: =E6*E16 -> 0 | F25: 243966.3723 | G25: =G6*G16 -> 217095.6678 | H25: 215569.7164 | I25: 217295.4345 | J25: 257893.6784 | K25: 312836.2783 | L25: 275329.2233 | M25: 301457.2619 | N25: 325919.812 | O25: 370646.6279 | P25: 359241.8928 | Q25: 314323.9763 | R25: 325642.6565 | S25: =S6*S16 -> 281147.7491 | T25: 282797.6981 | U25: 281605.8184 | V25: 326621.6372 | W25: =W6*W16 -> 316849.4631 | X25: 275159.0374 | Y25: 303064.611 | Z25: 328598.8155 | AA25: 372568.8636 | AB25: 360126.6211 | AC25: 312632.1506 | AD25: 324005.1244 | AE25: 283516.9122 | AF25: 281283.1154 | AG25: 286067.2297 | AH25: 335264.4873
B26: Large Gen Svc Schedule 021/022 | D26: =D7*D17 -> 0 | E26: 0 | F26: 411810.2104 | G26: =G7*G17 -> 388992.9066 | H26: 407336.103 | I26: 419546.5786 | J26: 485253.7443 | K26: 567437.7447 | L26: 509311.7429 | M26: 557468.1783 | N26: 556134.5972 | O26: 581415.5827 | P26: 553514.376 | Q26: 493537.0395 | R26: 533182.2858 | S26: =S7*S17 -> 488632.2821 | T26: 519171.9346 | U26: 528323.6765 | V26: 597067.9058 | W26: =W7*W17 -> 571881.6307 | X26: 506381.5621 | Y26: 558624.4068 | Z26: 559489.9858 | AA26: 581331.0057 | AB26: 551336.8821 | AC26: 487420.9526 | AD26: 525788.0867 | AE26: 488220.3279 | AF26: 512592.034 | AG26: 534496.8896 | AH26: 610339.096
B27: Extra Large Gen Schedule 25 | D27: =D8*D18 -> 0 | E27: 0 | F27: 208743.232 | G27: =G8*G18 -> 213327.526 | H27: 215236.8633 | I27: 214146.0129 | J27: 214324.3116 | K27: 284571.6479 | L27: 285335.7366 | M27: 281968.0715 | N27: 279554.2788 | O27: 276576.8817 | P27: 268242.7247 | Q27: 270864.8689 | R27: 262108.2599 | S27: =S8*S18 -> 268629.9226 | T27: 272896.8012 | U27: 270830.4845 | V27: 270205.7881 | W27: =W8*W18 -> 280112.8639 | X27: 278856.9232 | Y27: 276097.3175 | Z27: 273288.3672 | AA27: 272623.2859 | AB27: 267017.8512 | AC27: 268730.227 | AD27: 259837.6454 | AE27: 266175.0008 | AF27: 271266.5412 | AG27: 267852.7201 | AH27: 269091.9054
B28: Pumping Schedule 31/32 | D28: =D9*D19 -> 0 | E28: 0 | F28: 14072.62786 | G28: =G9*G19 -> 21137.32126 | H28: 38877.42093 | I28: 56792.75955 | J28: 79092.27977 | K28: 101301.2371 | L28: 75803.15603 | M28: 45980.71867 | N28: 20080.96226 | O28: 16973.803 | P28: 16659.25323 | Q28: 15065.07835 | R28: 17894.12144 | S28: =S9*S19 -> 26426.75342 | T28: 49967.35593 | U28: 72443.4939 | V28: 98704.20217 | W28: =W9*W19 -> 103094.1088 | X28: 76927.453 | Y28: 47347.82685 | Z28: 20422.89744 | AA28: 17010.54689 | AB28: 16598.59173 | AC28: 14926.42324 | AD28: 17444.08678 | AE28: 25251.11848 | AF28: 47750.65373 | AG28: 72820.18687 | AH28: 100692.4744
B29: Street and Area Lights | D29: =D10*D20 -> 0 | E29: 0 | F29: 18304.40256 | G29: 18262.08729 | H29: 18173.388 | I29: 18126.29336 | J29: 18073.71711 | K29: 29847.40984 | L29: 29599.06244 | M29: =M10*M20 -> 29603.06929 | N29: 29685.27582 | O29: 29682.74431 | P29: 29305.61435 | Q29: 29159.2106 | R29: =R10*R20 -> 29135.78582 | S29: =S10*S20 -> 28952.79915 | T29: 28900.10819 | U29: 28865.66059 | V29: 28754.83808 | W29: =W10*W20 -> 28527.9754 | X29: 28380.24593 | Y29: 28418.2834 | Z29: 28350.24883 | AA29: 28189.95439 | AB29: 27926.88452 | AC29: 27753.82244 | AD29: 27517.13023 | AE29: 27257.94471 | AF29: 27137.54759 | AG29: 26918.78024 | AH29: 26580.61895
B30: Total | D30: =SUM(D24:D29) -> 0 | E30: 0 | F30: 1651324.87 | G30: 1490331.968 | H30: 1472317.849 | I30: 1474661.722 | J30: 1719606.958 | K30: 2095883.261 | L30: 1857488.893 | M30: 1986810.795 | N30: 2183609.708 | O30: 2519514.794 | P30: =SUM(P24:P29) -> 2438287.54 | Q30: 2125409.089 | R30: 2161988.957 | S30: =SUM(S24:S29) -> 1895035.941 | T30: 1894578.249 | U30: 1876394.678 | V30: 2141477.279 | W30: =SUM(W24:W29) -> 2111909.518 | X30: 1848636.064 | Y30: 1986477.084 | Z30: 2187129.241 | AA30: 2522223.843 | AB30: 2441899.621 | AC30: 2114180.718 | AD30: 2149106.646 | AE30: 1902765.795 | AF30: 1881309.629 | AG30: 1893183.53 | AH30: 2180886.735 | AJ30: =SUM(K30:V30)-'WA Electric - Sched 91'!D39 -> 0
A32: Net DSM Revenue | C32: ='Rev Conv Factor'!E22 -> 0.953323 | D32: =D4 -> 2018-01-18 | E32: =E4 -> 2018-02-18 | F32: 2018-03-18 | G32: 2018-04-18 | H32: 2018-05-18 | I32: 2018-06-18 | J32: 2018-07-18 | K32: 2018-08-18 | L32: 2018-09-18 | M32: 2018-10-18 | N32: 2018-11-18 | O32: 2018-12-18 | P32: 2019-01-18 | Q32: 2019-02-18 | R32: 2019-03-18 | S32: 2019-04-18 | T32: 2019-05-18 | U32: 2019-06-18 | V32: 2019-07-18 | W32: =W4 -> 2019-08-18 | X32: 2019-09-18 | Y32: 2019-10-18 | Z32: 2019-11-18 | AA32: 2019-12-18 | AB32: 2020-01-18 | AC32: 2020-02-18 | AD32: 2020-03-18 | AE32: 2020-04-18 | AF32: 2020-05-18 | AG32: 2020-06-18 | AH32: 2020-07-18
B33: Residential Schedule 001 | D33: =D24*$C$32 -> 0 | E33: =E24*$C$32 -> 0 | F33: =F24*$C$32 -> 719213.5878 | G33: =G24*$C$32 -> 602039.1653 | H33: =H24*$C$32 -> 550185.9239 | I33: =I24*$C$32 -> 523140.4225 | J33: 633930.4585 | K33: 762552.5267 | L33: 650271.1243 | M33: 734376.6384 | N33: 926853.7788 | O33: 1186142.737 | P33: 1154782.724 | Q33: 955667.1403 | R33: 947627.7025 | S33: =S24*$C$32 -> 763846.6551 | T33: 706263.9596 | U33: 661916.5104 | V33: =V24*$C$32 -> 781842.0305 | W33: =W24*$C$32 -> 773567.7285 | X33: 651053.6792 | Y33: 736846.8353 | Z33: 931376.4804 | AA33: 1192130.59 | AB33: 1161998.531 | AC33: 955913.3141 | AD33: 948093.6158 | AE33: 774426.6872 | AF33: 706679.0229 | AG33: 672119.1447 | AH33: 799759.9707
B34: General Svc Schedule 011/012 | D34: =D25*$C$32 -> 0 | E34: =E25*$C$32 -> 0 | F34: 232578.754 | G34: =G25*$C$32 -> 206962.2934 | H34: 205507.5687 | I34: 207152.7355 | J34: 245855.9752 | K34: 298234.0194 | L34: 262477.6812 | M34: 287386.1413 | N34: 310706.8529 | O34: 353345.9552 | P34: 342473.559 | Q34: 299652.276 | R34: 310442.6342 | S34: =S25*$C$32 -> 268024.6156 | T34: 269597.55 | U34: 268461.3036 | V34: 311375.9191 | W34: =W25*$C$32 -> 302059.8807 | X34: 262315.439 | Y34: 288918.4642 | Z34: 313260.8086 | AA34: 355178.4668 | AB34: 343316.9908 | AC34: 298039.4197 | AD34: 308881.5372 | AE34: 270283.1933 | AF34: 268153.6634 | AG34: 272714.4696 | AH34: 319615.3468
B35: Large Gen Svc Schedule 021/022 | D35: =D26*$C$32 -> 0 | E35: 0 | F35: 392588.1452 | G35: =G26*$C$32 -> 370835.8847 | H35: 388322.8758 | I35: 399963.403 | J35: 462603.5553 | K35: 540951.4531 | L35: 485538.5987 | M35: 531447.2361 | N35: 530175.9026 | O35: 554276.8475 | P35: 527677.9855 | Q35: 470500.2111 | R35: 508294.9363 | S35: =S26*$C$32 -> 465824.3931 | T35: 494938.5462 | U35: 503663.1123 | V35: 569198.5671 | W35: =W26*$C$32 -> 545187.9118 | X35: 482745.1899 | Y35: 532549.4953 | Z35: 533374.6717 | AA35: 554196.2184 | AB35: 525602.1304 | AC35: 464669.6048 | AD35: 501245.8762 | AE35: 465431.6677 | AF35: 488665.7757 | AG35: 509548.1783 | AH35: 581850.298
B36: Extra Large Gen Schedule 25 | D36: =D27*$C$32 -> 0 | E36: 0 | F36: 198999.7242 | G36: =G27*$C$32 -> 203370.0371 | H36: 205190.2523 | I36: 204150.3195 | J36: 204320.2957 | K36: 271288.6971 | L36: 272017.1204 | M36: 268806.6479 | N36: 266505.5237 | O36: 263667.1026 | P36: 255721.959 | Q36: 258221.7094 | R36: 249873.8327 | S36: =S27*$C$32 -> 256091.0837 | T36: 260158.7972 | U36: 258188.93 | V36: 257593.3925 | W36: =W27*$C$32 -> 267038.0358 | X36: 265840.7186 | Y36: 263209.923 | Z36: 260532.0861 | AA36: 259898.0487 | AB36: 254554.2589 | AC36: 256186.7062 | AD36: 247709.2037 | AE36: 253750.7503 | AF36: 258604.6329 | AG36: 255350.1586 | AH36: 256531.5025
B37: Pumping Schedule 31/32 | D37: =D28*$C$32 -> 0 | E37: 0 | F37: 13415.75981 | G37: =G28*$C$32 -> 20150.69451 | H37: 37062.73956 | I37: 54141.84391 | J37: 75400.48942 | K37: 96572.79928 | L37: 72264.89212 | M37: 43834.47667 | N37: 19143.64319 | O37: 16181.51679 | P37: 15881.64926 | Q37: 14361.88569 | R37: 17058.87754 | S37: =S28*$C$32 -> 25193.23185 | T37: 47635.02966 | U37: 69062.04894 | V37: 94096.98612 | W37: =W28*$C$32 -> 98281.98507 | X37: 73336.71028 | Y37: 45137.77234 | Z37: 19469.61785 | AA37: 16216.54559 | AB37: 15823.81926 | AC37: 14229.70258 | AD37: 16629.84914 | AE37: 24072.47202 | AF37: 45521.79647 | AG37: 69421.15901 | AH37: 95992.45175
B38: Street and Area Lights | D38: =D29*$C$32 -> 0 | E38: 0 | F38: 17450.00796 | G38: =G29*$C$32 -> 17409.66784 | H38: =H29*$C$32 -> 17325.10877 | I38: 17280.21237 | J38: 17230.09022 | K38: 28454.22229 | L38: 28217.467 | M38: 28221.28682 | N38: 28299.6562 | O38: 28297.24285 | P38: 27937.71619 | Q38: 27798.14613 | R38: 27775.81475 | S38: =S29*$C$32 -> 27601.36935 | T38: 27551.13784 | U38: 27518.29815 | V38: 27412.6485 | W38: =W29*$C$32 -> 27196.37509 | X38: 27055.54119 | Y38: 27091.80319 | Z38: 27026.94426 | AA38: 26874.13189 | AB38: 26623.34133 | AC38: 26458.35727 | AD38: 26232.71314 | AE38: 25985.62562 | AF38: 25870.84828 | AG38: 25662.29234 | AH38: 25339.9154
B39: Total | D39: =SUM(D33:D38) -> 0 | E39: =SUM(E33:E38) -> 0 | F39: =SUM(F33:F38) -> 1574245.979 | G39: =SUM(G33:G38) -> 1420767.743 | H39: 1403594.469 | I39: 1405828.937 | J39: 1639340.864 | K39: 1998053.718 | L39: 1770786.884 | M39: 1894072.427 | N39: 2081685.357 | O39: 2401911.402 | P39: 2324475.593 | Q39: 2026201.369 | R39: 2061073.798 | S39: =SUM(S33:S38) -> 1806581.349 | T39: 1806145.021 | U39: 1788810.203 | V39: 2041519.544 | W39: =SUM(W33:W38) -> 2013331.917 | X39: 1762347.278 | Y39: 1893754.293 | Z39: 2085040.609 | AA39: 2404494.001 | AB39: 2327919.072 | AC39: 2015497.105 | AD39: 2048792.795 | AE39: 1813950.396 | AF39: 1793495.74 | AG39: 1804815.403 | AH39: 2079089.485 | AJ39: =SUM(K39:V39)-'WA Electric - Sched 91'!D42 -> 0

Sheet DSM Balance
I1: 2018 | U1: 2019 | AG1: 2020
C2: End January | D2: End February | E2: End March | F2: End April | G2: End May | H2: End June | I2: End July | J2: End August | K2: End September | L2: End October | M2: End November | N2: End December | O2: End January | P2: End February | Q2: End March | R2: End April | S2: End May | T2: End June | U2: End July | V2: End August | W2: End September | X2: End October | Y2: End November | Z2: End December | AA2: End January | AB2: End February | AC2: End March | AD2: End April | AE2: End May | AF2: End June | AG2: End July
A3: Expected elec tariff rider revenue | F3: =-'Revenue By Month'!G39 -> -1420767.743 | G3: =-'Revenue By Month'!H39 -> -1403594.469 | H3: =-'Revenue By Month'!I39 -> -1405828.937 | I3: =-'Revenue By Month'!J39 -> -1639340.864 | J3: =-'Revenue By Month'!K39 -> -1998053.718 | K3: =-'Revenue By Month'!L39 -> -1770786.884 | L3: =-'Revenue By Month'!M39 -> -1894072.427 | M3: =-'Revenue By Month'!N39 -> -2081685.357 | N3: =-'Revenue By Month'!O39 -> -2401911.402 | O3: =-'Revenue By Month'!P39 -> -2324475.593 | P3: =-'Revenue By Month'!Q39 -> -2026201.369 | Q3: =-'Revenue By Month'!R39 -> -2061073.798 | R3: =-'Revenue By Month'!S39 -> -1806581.349 | S3: =-'Revenue By Month'!T39 -> -1806145.021 | T3: =-'Revenue By Month'!U39 -> -1788810.203 | U3: =-'Revenue By Month'!V39 -> -2041519.544 | V3: =-'Revenue By Month'!W39 -> -2013331.917 | W3: =-'Revenue By Month'!X39 -> -1762347.278 | X3: =-'Revenue By Month'!Y39 -> -1893754.293 | Y3: =-'Revenue By Month'!Z39 -> -2085040.609 | Z3: =-'Revenue By Month'!AA39 -> -2404494.001 | AA3: =-'Revenue By Month'!AB39 -> -2327919.072 | AB3: =-'Revenue By Month'!AC39 -> -2015497.105 | AC3: =-'Revenue By Month'!AD39 -> -2048792.795 | AD3: =-'Revenue By Month'!AE39 -> -1813950.396 | AE3: =-'Revenue By Month'!AF39 -> -1793495.74 | AF3: =-'Revenue By Month'!AG39 -> -1804815.403 | AG3: =-'Revenue By Month'!AH39 -> -2079089.485
A4: Expected DSM expenditures | F4: 1299879.66 | G4: 1336210.257 | H4: 1752847.627 | I4: 1087268.147 | J4: 915434.9067 | K4: 1595695.987 | L4: 1306214.877 | M4: 1880984.107 | N4: 1578301.307 | O4: 1505750.667 | P4: 1246539.667 | Q4: 1785571.667 | R4: 1329046.327 | S4: 1336210.257 | T4: 1752847.627 | U4: 1087268.147 | V4: 915434.9067 | W4: 1595695.987 | X4: 1306214.877 | Y4: 1880984.107 | Z4: 1578301.307 | AA4: 1505750.667 | AB4: 1246539.667 | AC4: 1785571.667 | AD4: 1329046.327 | AE4: 1336210.257 | AF4: 1752847.627 | AG4: 1087268.147 | AH4: 915434.9067
A5: Net change in balance | E5: =E3+E4 -> 0 | F5: -120888.0828 | G5: -67384.21234 | H5: 347018.69 | I5: -552072.7177 | J5: -1082618.811 | K5: -175090.897 | L5: -587857.5505 | M5: -200701.2507 | N5: -823610.0953 | O5: -818724.9259 | P5: -779661.7021 | Q5: -275502.1313 | R5: -477535.022 | S5: -469934.7639 | T5: -35962.57668 | U5: -954251.3971 | V5: =V3+V4 -> -1097897.01 | W5: -166651.2914 | X5: -587539.4166 | Y5: -204056.5023 | Z5: -826192.6944 | AA5: -822168.4053 | AB5: -768957.438 | AC5: -263221.1284 | AD5: -484904.0694 | AE5: -457285.4829 | AF5: -51967.77595 | AG5: -991821.3385
A6: Accounting Adjustment
A7: Elec Tariff rider balance | E7: 13797440 | F7: =F5+F6+E7 -> 13676551.92 | G7: 13609167.7 | H7: 13956186.39 | I7: 13404113.68 | J7: 12321494.87 | K7: 12146403.97 | L7: 11558546.42 | M7: 11357845.17 | N7: 10534235.07 | O7: 9715510.147 | P7: 8935848.445 | Q7: 8660346.313 | R7: 8182811.291 | S7: 7712876.527 | T7: 7676913.951 | U7: =T7+U5+U6 -> 6722662.554 | V7: =U7+V5+V6 -> 5624765.543 | W7: 5458114.252 | X7: 4870574.835 | Y7: 4666518.333 | Z7: 3840325.639 | AA7: 3018157.233 | AB7: 2249199.795 | AC7: 1985978.667 | AD7: 1501074.597 | AE7: 1043789.114 | AF7: 991821.3385 | AG7: 4.190951586e-09
A13: Tariff rider balance annual interest rate | B13: 0 | C13: applied to E "shareholder owes customer" balances.
A14: 2015 Washington electric DSM budget | C14: CY 2016 expected expenditures
A15: 2016 Washington electric DSM budget | B15: =B14*1.02 -> 0 | C15: CY 2017 expected expenditures + 2% increase
A19: End of July Balance | B19: =I7 -> 13404113.68 | C19: Underfunded "Surcharge"
A20: Aug 2018 - July 2020 Expenditure Budget | B20: =SUM(J4:AG4) -> 34639731.08
A21: Aug 2018 - July 2020 Forecasted Revenue | B21: =SUM(J3:AG3) -> -48043844.76
B22: =SUM(C6:U6) -> 0
A23: Total Projected DSM Balance July 2019 | B23: =B19+B20+B22+B21 -> 0
B25: Present | C25: Proposed
A26: Gross Annual Revenue Recovered | B26: ='WA Electric - Sched 91'!C11 -> 19829602.18 | C26: ='WA Electric - Sched 91'!C19 -> 25176479.18 | D26: =C26-B26 -> 5346877.006
A27: Revenue Conversion Factor | B27: ='Rev Conv Factor'!E22 -> 0.953323 | C27: ='Rev Conv Factor'!E22 -> 0.953323
A29: Net Annual Revenue to be Recovered | B29: =B26*B27 -> 18904015.84 | C29: =C26*C27 -> 24001316.66 | D29: =C29-B29 -> 5097300.828
A33: June 2017 - May 2018
A34: Annual DSM Expense | B34: =SUM(H4:S4) -> 17319865.54
A35: Annual DSM Revenue | B35: =SUM(H3:S3) -> -23216156.72
B36: =B34+B35 -> -5896291.177

Sheet Rev Conv Factor
A1: AVISTA UTILITIES
A2: Revenue Conversion Factor
A3: Washington - Electric System
A4: TWELVE MONTHS ENDED DECEMBER 31, 2016
A6: Line
A7: No. | C7: Description | E7: Factor
A9: 1 | C9: Revenues | E9: 1
C11: Expense:
A12: 2 | C12: Uncollectibles | E12: 0.0061825
A14: 3 | C14: Commission Fees | E14: 0.002
A16: 4 | C16: Washington Excise Tax | E16: 0.0384945
A18: 5 | C18: Franchise Fees | E18: 0
A20: 6 | C20: Total Expense | E20: =E12+E14+E16+E18 -> 0.046677
A22: 7 | C22: Net Operating Income Before FIT | E22: =E9-E20 -> 0.953323
A24: 8 | C24: Federal Income Tax @ 21% | E24: 0.200198
A26: 9 | C26: REVENUE CONVERSION FACTOR | E26: =E22-E24 -> 0.753125
A29: Source: UE-170485

Sheet Billing Determinants
A4: Forecasted Loads
D7: 2018-03-01 | E7: 2018-04-01 | F7: 2018-05-01 | G7: 2018-06-01 | H7: 2018-07-01 | I7: 2018-08-01 | J7: 2018-09-01 | K7: 2018-10-01 | L7: 2018-11-01 | M7: 2018-12-01 | N7: 2019-01-01 | O7: 2019-02-01 | P7: 2019-03-01 | Q7: 2019-04-01 | R7: 2019-05-01 | S7: 2019-06-01 | T7: 2019-07-01 | U7: 2019-08-01 | V7: 2019-09-01 | W7: 2019-10-01 | X7: 2019-11-01 | Y7: 2019-12-01 | Z7: 2020-01-01 | AA7: 2020-02-01 | AB7: 2020-03-01 | AC7: 2020-04-01 | AD7: 2020-05-01 | AE7: 2020-06-01 | AF7: 2020-07-01
A8: WA001 | D8: 219310472.3 | E8: 183580366 | F8: 167768708.6 | G8: 159521698.5 | H8: 193305007.9 | I8: 184858018.7 | J8: 157638755.9 | K8: 178027618.5 | L8: 224687935.8 | M8: 287544777 | N8: 279942481.1 | O8: 231672872.2 | P8: 229723951.3 | Q8: 185171741.3 | R8: 171212541.6 | S8: 160461831 | T8: 189534181.1 | U8: 187528324.4 | V8: 157828462.9 | W8: 178626443.8 | X8: 225784329.3 | Y8: 288996352.5 | Z8: 281691737.5 | AA8: 231732549.6 | AB8: 229836898 | AC8: 187736553.2 | AD8: 171313161.3 | AE8: 162935154 | AF8: 193877849
A9: WA011 | D9: 47237166.2 | E9: 42361735.29 | F9: 42363408.93 | G9: 42933370.19 | H9: 51248487.05 | I9: 48217692.67 | J9: 42249192.93 | K9: 46004251.17 | L9: 49193115.1 | M9: 55297443.96 | N9: 53409191.3 | O9: 46846350.42 | P9: 48826142.23 | Q9: 42465566.54 | R9: 43039603.49 | S9: 43117912.2 | T9: 50263696.87 | U9: 48779207.69 | V9: 42174871.61 | W9: 46179610.24 | X9: 49539333.09 | Y9: 55502812.96 | Z9: 53458069.84 | AA9: 46516611.72 | AB9: 48483411.47 | AC9: 42738276.22 | AD9: 42739660.58 | AE9: 43725513.52 | AF9: 51524967.92
A10: WA012 | D10: 5455354.822 | E10: 4527177.855 | F10: 4195925.054 | G10: 3998689.094 | H10: 4452091.446 | I10: 4190934.082 | J10: 3875977.013 | K10: 4498079.335 | L10: 5407361.126 | M10: 6795996.361 | N10: 6773644.195 | O10: 5811506.396 | P10: 5727902.876 | Q10: 4634365.479 | R10: 4336740.098 | S10: 4058758.949 | T10: 4454354.272 | U10: 4301737.196 | V10: 3921787.532 | W10: 4591995.173 | X10: 5509949.453 | Y10: 6912654.39 | Z10: 6872981.822 | AA10: 5857818.063 | AB10: 5796302.254 | AC10: 4758555.379 | AD10: 4382948.995 | AE10: 4198565.969 | AF10: 4640996.816
A11: WA021 | D11: 109711137.7 | E11: 103836068.2 | F11: 108905097 | G11: 112259201.1 | H11: 129827343.4 | I11: 120761415.1 | J11: 108418244.9 | K11: 118644704.3 | L11: 118116610.4 | M11: 123116804 | N11: 117070383.7 | O11: 104449333.8 | P11: 113035116.2 | Q11: 103798624.9 | R11: 110461098.4 | S11: 112504441.1 | T11: 127129489.8 | U11: 121719263.3 | V11: 107803450.1 | W11: 118903295.3 | X11: 118854302.4 | Y11: 123122900 | Z11: 116625417.5 | AA11: 103160207.8 | AB11: 111466267.8 | AC11: 103707904 | AD11: 109064057 | AE11: 113828097.4 | AF11: 129971363.7
A12: WA022 | D12: 2805313.17 | E12: 2446146.731 | F12: 2388920.194 | G12: 2371011.602 | H12: 2755646.877 | I12: 2602372.246 | J12: 2308660.544 | K12: 2551649.674 | L12: 2789816.417 | M12: 3285834.785 | N12: 3266394.014 | O12: 2848072.747 | P12: 2881363.988 | Q12: 2432463.008 | R12: 2409461.781 | S12: 2355753.278 | T12: 2676041.901 | U12: 2610646.909 | V12: 2286419.534 | W12: 2544428.537 | X12: 2781602.596 | Y12: 3261351.344 | Z12: 3237962.204 | AA12: 2807531.005 | AB12: 2842676.789 | AC12: 2433623.017 | AD12: 2376000.085 | AE12: 2374184.226 | AF12: 2719390.678
A13: WA025 | D13: 89975531.04 | E13: 91951519.83 | F13: 92774510.06 | G13: 92304315.92 | H13: 92381168.8 | I13: 95801534.5 | J13: 96058766.26 | K13: 94925036.04 | L13: 94112428.56 | M13: 93110082.73 | N13: 90304374.42 | O13: 91187123.79 | P13: 88239196.32 | Q13: 90434725.26 | R13: 91871177.29 | S13: 91175548.22 | T13: 90965243.09 | U13: 94300477.21 | V13: 93877662.59 | W13: 92948636.59 | X13: 92002998.65 | Y13: 91779097.88 | Z13: 89892018.66 | AA13: 90468492.93 | AB13: 87474790.05 | AC13: 89608271.63 | AD13: 91322347.46 | AE13: 90173078.7 | AF13: 90590252.57
A14: WA031 | D14: 3865374.197 | E14: 5760036.28 | F14: 10657870.62 | G14: 15558530.17 | H14: 21449848.4 | I14: 21784015.11 | J14: 16433774.7 | K14: 10021886.88 | L14: 4349506.155 | M14: 3647299.305 | N14: 3563751.051 | O14: 3232540.609 | P14: 3868520.51 | Q14: 5673413.622 | R14: 10802345.92 | S14: 15652263.27 | T14: 21092583.5 | U14: 22181534.51 | V14: 16693800.68 | W14: 10331007.09 | X14: 4426771.751 | Y14: 3659252.068 | Z14: 3552192.267 | AA14: 3202790.057 | AB14: 3770137.89 | AC14: 5416403.33 | AD14: 10311918.52 | AE14: 15753083.34 | AF14: 21539821.97
A15: WA032 | D15: 261496.1422 | E15: 438591.6553 | F15: 743132.5871 | G15: 1096238.024 | H15: 1744368.542 | I15: 1626135.279 | J15: 1083911.492 | K15: 604000.5194 | L15: 291092.1236 | M15: 275251.8123 | N15: 286109.3708 | O15: 248914.8987 | P15: 266711.0629 | Q15: 433661.5674 | R15: 744831.0942 | S15: 1089023.763 | T15: 1717406.615 | U15: 1642938.52 | V15: 1083704.269 | W15: 610811.3797 | X15: 292845.8369 | Y15: 271790.3581 | Z15: 283649.6217 | AA15: 246623.0278 | AB15: 261093.1849 | AC15: 418989.1886 | AD15: 722990.9882 | AE15: 1075255.337 | AF15: 1729646.747
A16: WA04X | D16: 1506535.19 | E16: 1503052.451 | F16: 1495752.099 | G16: 1491875.997 | H16: 1487548.733 | I16: 1479929.062 | J16: 1467615.212 | K16: 1467813.884 | L16: 1471889.944 | M16: 1471764.424 | N16: 1453065.127 | O16: 1445805.966 | P16: 1444644.491 | Q16: 1435571.433 | R16: 1432958.848 | S16: 1431250.827 | T16: 1425755.896 | U16: 1414507.326 | V16: 1407182.431 | W16: 1409068.45 | X16: 1405695.08 | Y16: 1397747.175 | Z16: 1384703.338 | AA16: 1376122.372 | AB16: 1364386.423 | AC16: 1351535.184 | AD16: 1345565.514 | AE16: 1334718.336 | AF16: 1317951.229
D17: =SUM(D8:D16) -> 480128380.8 | E17: 436404694.3 | F17: 431293325.2 | G17: 431534930.7 | H17: 498651511.1 | I17: 481322046.7 | J17: 429534899 | K17: 456745040.3 | L17: 500419755.6 | M17: 574545254.3 | N17: 556069394.3 | O17: 487742520.8 | P17: =SUM(P8:P16) -> 494013549 | Q17: 436480133.1 | R17: 436310758.6 | S17: 431846782.6 | T17: 489258752.9 | U17: =SUM(U8:U16) -> 484478637.1 | V17: 427077341.6 | W17: 456145296.5 | X17: 500597828.2 | Y17: 574903958.6 | Z17: 556998732.7 | AA17: 485368746.6 | AB17: 491295963.9 | AC17: 438170111.1 | AD17: 433578650.5 | AE17: 435397650.8 | AF17: 497912240.6
AH18: 2017 | AI18: 2017-2018
A19: WA001 | D19: =D8 -> 219310472.3 | E19: 183580366 | F19: 167768708.6 | G19: 159521698.5 | H19: 193305007.9 | I19: 184858018.7 | J19: 157638755.9 | K19: 178027618.5 | L19: 224687935.8 | M19: 287544777 | N19: 279942481.1 | O19: 231672872.2 | P19: 229723951.3 | Q19: 185171741.3 | R19: 171212541.6 | S19: 160461831 | T19: 189534181.1 | U19: =U8 -> 187528324.4 | V19: 157828462.9 | W19: 178626443.8 | X19: 225784329.3 | Y19: 288996352.5 | Z19: 281691737.5 | AA19: 231732549.6 | AB19: 229836898 | AC19: 187736553.2 | AD19: 171313161.3 | AE19: 162935154 | AF19: 193877849 | AH19: =SUM(B19:M19) -> 1956243359 | AI19: =SUM(B19:T19) -> 3403962959
A20: WA011/12 | D20: =D9+D10 -> 52692521.02 | E20: 46888913.14 | F20: 46559333.99 | G20: 46932059.28 | H20: 55700578.49 | I20: 52408626.76 | J20: 46125169.94 | K20: 50502330.5 | L20: 54600476.22 | M20: 62093440.32 | N20: 60182835.49 | O20: 52657856.82 | P20: 54554045.11 | Q20: 47099932.02 | R20: 47376343.59 | S20: 47176671.15 | T20: 54718051.14 | U20: =U9+U10 -> 53080944.88 | V20: 46096659.14 | W20: 50771605.41 | X20: 55049282.54 | Y20: 62415467.35 | Z20: 60331051.66 | AA20: 52374429.79 | AB20: 54279713.73 | AC20: 47496831.59 | AD20: 47122609.58 | AE20: 47924079.48 | AF20: 56165964.74 | AH20: =SUM(B20:M20) -> 514503449.7 | AI20: =SUM(B20:T20) -> 878269185
A21: WA021/22 | D21: =D11+D12 -> 112516450.9 | E21: 106282214.9 | F21: 111294017.2 | G21: 114630212.7 | H21: 132582990.3 | I21: 123363787.3 | J21: 110726905.5 | K21: 121196354 | L21: 120906426.8 | M21: 126402638.8 | N21: 120336777.7 | O21: 107297406.5 | P21: 115916480.2 | Q21: 106231087.9 | R21: 112870560.2 | S21: 114860194.4 | T21: 129805531.7 | U21: =U11+U12 -> 124329910.2 | V21: 110089869.6 | W21: 121447723.8 | X21: 121635905 | Y21: 126384251.3 | Z21: 119863379.7 | AA21: 105967738.8 | AB21: 114308944.5 | AC21: 106141527 | AD21: 111440057.1 | AE21: 116202281.6 | AF21: 132690754.4 | AH21: 1179901998 | AI21: 1987220037
A22: WA025 | D22: =D13 -> 89975531.04 | E22: 91951519.83 | F22: 92774510.06 | G22: 92304315.92 | H22: 92381168.8 | I22: 95801534.5 | J22: 96058766.26 | K22: 94925036.04 | L22: 94112428.56 | M22: 93110082.73 | N22: 90304374.42 | O22: 91187123.79 | P22: 88239196.32 | Q22: 90434725.26 | R22: 91871177.29 | S22: 91175548.22 | T22: 90965243.09 | U22: =U13 -> 94300477.21 | V22: 93877662.59 | W22: 92948636.59 | X22: 92002998.65 | Y22: 91779097.88 | Z22: 89892018.66 | AA22: 90468492.93 | AB22: 87474790.05 | AC22: 89608271.63 | AD22: 91322347.46 | AE22: 90173078.7 | AF22: 90590252.57 | AH22: 933394893.7 | AI22: 1567572282
A23: WA031/32 | D23: =D14+D15 -> 4126870.339 | E23: 6198627.935 | F23: 11401003.21 | G23: 16654768.2 | H23: 23194216.94 | I23: 23410150.39 | J23: 17517686.19 | K23: 10625887.4 | L23: 4640598.279 | M23: 3922551.118 | N23: 3849860.421 | O23: 3481455.508 | P23: 4135231.573 | Q23: 6107075.19 | R23: 11547177.02 | S23: 16741287.03 | T23: 22809990.11 | U23: =U14+U15 -> 23824473.02 | V23: 17777504.95 | W23: 10941818.47 | X23: 4719617.588 | Y23: 3931042.426 | Z23: 3835841.888 | AA23: 3449413.085 | AB23: 4031231.075 | AC23: 5835392.519 | AD23: 11034909.51 | AE23: 16828338.67 | AF23: 23269468.72 | AH23: 121692360 | AI23: 190364436.9
A24: WA04X | D24: =D16 -> 1506535.19 | E24: 1503052.451 | F24: 1495752.099 | G24: 1491875.997 | H24: 1487548.733 | I24: 1479929.062 | J24: 1467615.212 | K24: 1467813.884 | L24: 1471889.944 | M24: 1471764.424 | N24: 1453065.127 | O24: 1445805.966 | P24: 1444644.491 | Q24: 1435571.433 | R24: 1432958.848 | S24: 1431250.827 | T24: 1425755.896 | U24: =U16 -> 1414507.326 | V24: 1407182.431 | W24: 1409068.45 | X24: 1405695.08 | Y24: 1397747.175 | Z24: 1384703.338 | AA24: 1376122.372 | AB24: 1364386.423 | AC24: 1351535.184 | AD24: 1345565.514 | AE24: 1334718.336 | AF24: 1317951.229 | AH24: 14843777 | AI24: 24912829.58
A25: Total | D25: =SUM(D19:D24) -> 480128380.8 | E25: 436404694.3 | F25: 431293325.2 | G25: 431534930.7 | H25: 498651511.1 | I25: 481322046.7 | J25: 429534899 | K25: 456745040.3 | L25: 500419755.6 | M25: 574545254.3 | N25: 556069394.3 | O25: 487742520.8 | P25: =SUM(P19:P24) -> 494013549 | Q25: 436480133.1 | R25: 436310758.6 | S25: 431846782.6 | T25: 489258752.9 | U25: =SUM(U19:U24) -> 484478637.1 | V25: 427077341.6 | W25: 456145296.5 | X25: 500597828.2 | Y25: 574903958.6 | Z25: 556998732.7 | AA25: 485368746.6 | AB25: 491295963.9 | AC25: 438170111.1 | AD25: 433578650.5 | AE25: 435397650.8 | AF25: 497912240.6 | AH25: 4720579838 | AI25: 8052301729

Sheet Base Revenue
A1: AVISTA UTILITIES | Q1: This worksheet pulls data from 'Pres & Prop Rev' tab.
A2: WASHINGTON ELECTRIC
A3: PROPOSED INCREASE BY SERVICE SCHEDULE
A4: 12 MONTHS ENDED DECEMBER 31, 2016
A5: (000s of Dollars)
A6: Source: UE-170485 Compliance Filing, Attachment 1, Page 1
D8: Base Tariff | F8: Base Tariff | G8: Base | H8: Total Billed | J8: Percent | N8: Percent | R8: Percent | S8: Total Billed
D9: Revenue | E9: Total | F9: Revenue | G9: Tariff | H9: Revenue | I9: Total | J9: Increase | K9: Sch. 98 | L9: Sch. 93 | M9: Proposed | N9: Increase | R9: Increase | S9: Revenue
B10: Type of | C10: Schedule | D10: Under Present | E10: General | F10: Under Proposed | G10: Percent | H10: at Present | I10: General | J10: on Billed | K10: REC Revenue | L10: ERM | M10: General | N10: on Billed | R10: on Base | S10: at Proposed
A11: No. | B11: Service | C11: Number | D11: Rates(1) | E11: Increase | F11: Rates(1) | G11: Increase | H11: Rates (2) | I11: Increase | J11: Revenue | K11: Decrease | L11: Increase | M11: Increase | N11: Revenue | R11: Revenue | S11: Rates (2)
B12: (a) | C12: (b) | D12: (c) | E12: (d) | F12: (e) | G12: (f) | H12: (g) | I12: (h) | J12: (k) | K12: (j) | L12: (k) | M12: (j) | N12: (k) | P12: ="col (m) source" -> col (m) source
D13: =IF(Base1_Billing2<>1,"ERROR","") -> 
A14: 1 | B14: Residential | C14: 1 | D14: 209488.9307 | E14: 4904.45689 | F14: 214393.3876 | G14: 0.02341153241 | H14: 227177.7888 | I14: 4904.45689 | J14: =(I14)/H14 -> 0.02158862852 | K14: ='[3]Adder Schedule'!H11/1000 ->  | L14: =('[3]Pres & Prop Rev'!D23*(0))/1000 -> 0 | M14: =E14+L14 -> 4904.45689 | N14: =(M14)/H14 -> 0.02158862852 | P14: from Pres & Prop Rev tab | R14: =(E14+L14)/D14 -> 0.02341153241 | S14: =E14+H14+L14 -> 232082.2457 | U14: =#REF!/H14 ->  | V14: =#REF!/H14 -> 
A16: 2 | B16: General Service | C16: 11/12 | D16: 73765.85187 | E16: 1291.42647 | F16: 75057.47834 | G16: 0.0175071044 | H16: 77450.85029 | I16: 1291.42647 | J16: =(I16)/H16 -> 0.01667414193 | K16: ='[3]Adder Schedule'!H13/1000 ->  | L16: =('[3]Pres & Prop Rev'!E23*(0))/1000 -> 0 | M16: =E16+L16 -> 1291.42647 | N16: =(M16)/H16 -> 0.01667414193 | P16: from below | R16: =(E16+L16)/D16 -> 0.0175071044 | S16: =E16+H16+L16 -> 78742.27676 | U16: =#REF!/H16 ->  | V16: =#REF!/H16 -> 
A18: 3 | B18: Large General Service | C18: 21/22 | D18: 126766.2944 | E18: 2774.5582 | F18: 129540.7526 | G18: 0.0218871918 | H18: 133183.523 | I18: 2774.5582 | J18: 0.02083259353 | K18: ='[3]Adder Schedule'!H15/1000 ->  | L18: =('[3]Pres & Prop Rev'!F23*(0))/1000 -> 0 | M18: =E18+L18 -> 2774.5582 | N18: =(M18)/H18 -> 0.02083259353 | P18: from below | R18: =(E18+L18)/D18 -> 0.0218871918 | S18: =E18+H18+L18 -> 135958.0812 | U18: =#REF!/H18 ->  | V18: =#REF!/H18 -> 
A20: 4 | B20: Extra Large General Service | C20: 25 | D20: 64348.30152 | E20: 1405.0125 | F20: 65753.01402 | G20: 0.02193449239 | H20: 67050.37743 | I20: 1405.0125 | J20: 0.02095458003 | K20: ='[3]Adder Schedule'!H17/1000 ->  | L20: =('[3]Pres & Prop Rev'!G23*(0))/1000 -> 0 | M20: =E20+L20 -> 1405.0125 | N20: =(M20)/H20 -> 0.02095458003 | P20: from Pres & Prop Rev tab | R20: =(E20+L20)/D20 -> 0.02183449239 | S20: =E20+H20+L20 -> 68455.38993 | U20: =#REF!/H20 ->  | V20: =#REF!/H20 -> 
A22: 5 | B22: Pumping Service | C22: 30/31/32 | D22: 10894.09779 | E22: 238.12928 | F22: 11132.22707 | G22: 0.02185855906 | H22: 11443.43827 | I22: 238.12928 | J22: 0.02080924233 | K22: ='[3]Adder Schedule'!H19/1000 ->  | L22: =('[3]Pres & Prop Rev'!H23*(0))/1000 -> 0 | M22: =E22+L22 -> 238.12928 | N22: =(M22)/H22 -> 0.02080924233 | P22: from below | R22: =(E22+L22)/D22 -> 0.02185855906 | S22: =E22+H22+L22 -> 11681.56755 | U22: =#REF!/H22 ->  | V22: =#REF!/H22 -> 
A24: 6 | B24: Street & Area Lights | C24: 41-48 | D24: 6870.56812 | E24: 149.7032404 | F24: 7020.571361 | G24: 0.02178906282 | H24: 7222.884206 | I24: 149.7032404 | J24: 0.02072624122 | K24: ='[3]Adder Schedule'!H21/1000 ->  | L24: =('[3]Pres & Prop Rev'!I23*(0))/1000 -> 0 | M24: =E24+L24 -> 149.7032404 | N24: =(M24)/H24 -> 0.02072624122 | P24: from Pres & Prop Rev tab | R24: =(E24+L24)/D24 -> 0.02178906282 | S24: =E24+H24+L24 -> 7372.587446 | U24: =#REF!/H24 ->  | V24: =#REF!/H24 -> 
A26: 7 | B26: Total | D26: =SUM(D14:D24) -> 492134.0445 | E26: =SUM(E14:E24) -> 10763.28658 | F26: =SUM(F14:F24) -> 502897.431 | G26: =E26/D26 -> 0.02187064013 | H26: =SUM(H14:H24) -> 523528.862 | I26: =E26 -> 10763.28658 | J26: 0.02055910832 | K26: =SUM(K14:K25) ->  | L26: =SUM(L14:L24) -> 0 | M26: =E26+L26 -> 10763.28658 | N26: =(M26)/H26 -> 0.02055910832 | P26: from below | R26: =(E26+L26)/D26 -> 0.02187064013 | S26: =E26+H26+L26 -> 534292.1485 | U26: =#REF!/H26 ->  | V26: =#REF!/H26 -> 
D28: =IF(Base1_Billing2=2,"Exhibit won't work until Base1_Billing2 range set to '1'","") -> 
A31: (1) Excludes all present rate adjustments: Schedule 59 (BPA Residential Exchange), Schedule 91 (DSM),
A32: Schedule 92 (LIRAP), Schedule 93 (ERM), and Schedule 98 (REC Revenue).
A34: (2) Includes all present rate adjustments: Schedule 59 (BPA Residential Exchange), Schedule 91 (DSM),
A35: Schedule 92 (LIRAP), Schedule 93 (ERM), and Schedule 98 (REC Revenue).
B38: reduce billed revenue for BPA ResEx (already accounted for in Schs 1 & 48)
F39: Billing | I39: Billed Revenue
F40: Determinants | H40: Sch 59 Rate | I40: Impact
B41: Schedule 12 only | F41: ='[3]Rev Runs 12MESEPT2014'!P49+'[3]Rev Runs 12MESEPT2014'!P81+'[3]Rev Runs 12MESEPT2014'!P90 -> 57963673 | H41: -0.00027 | I41: =F41*H41 -> -15650.19171
B42: Schedule 22 only | F42: ='[3]Rev Runs 12MESEPT2014'!P51+'[3]Rev Runs 12MESEPT2014'!P83+'[3]Rev Runs 12MESEPT2014'!P92 -> 36956089 | H42: -0.00027 | I42: =F42*H42 -> -9978.14403
B43: Schedule 32 only | F43: ='[3]Rev Runs 12MESEPT2014'!P55+'[3]Rev Runs 12MESEPT2014'!P86+'[3]Rev Runs 12MESEPT2014'!P95 -> 8649684 | H43: -0.00027 | I43: =F43*H43 -> -2335.41468
B45: Total | F45: =SUM(F41:F44) -> 103569446 | I45: =SUM(I41:I44) -> -27963.75042 | J45: Manually deducted in Column H
J48: ERM Reduction Calc | L48: 0 | M48: 1 | N48: =-D14*$L$49 -> 0 | P48: =0/'[3]Pres & Prop Rev'!D23 -> 0 | Q48: =(D14/$D$26)*$N$54 -> 0
L49: =L48/D26 -> 0 | M49: 11 | N49: =-D16*L49 -> 0 | Q49: =(D16/$D$26)*$N$54 -> 0
M50: 21 | N50: =-D18*L49 -> 0 | Q50: =(D18/$D$26)*$N$54 -> 0
M51: 25 | N51: =-D20*L49 -> 0 | Q51: =(D20/$D$26)*$N$54 -> 0
M52: 31 | N52: =-D22*L49 -> 0 | Q52: =(D22/$D$26)*$N$54 -> 0
M53: 41-48 | N53: =-D24*L49 -> 0 | Q53: =(D24/$D$26)*$N$54 -> 0
N54: =SUM(N48:N53) -> 0 | Q54: =SUM(Q48:Q53) -> 0
